Cogmind - Beta 15 @@@ ROGUE MODE // 2025.06.06 @ 17:10:36 // Winter2019/RPGLIKE Player: Jack Result: Destroyed by Y-45 Defender with Beam Rifle Performance ------------- Evolutions (2) 1000 Regions Visited (5) 1000 Robots Destroyed (7) 35 Value Destroyed (58) 58 Prototype IDs (0) 0 Alien Tech Used (0) 0 Bonus (0) 0 TOTAL SCORE: 2093 Bonus ------- None Cogmind --------- Core Integrity 0/600 Matter 300/300 Energy 125/125 System Corruption 0% Temperature Cool (9) Movement Flying (37) Location -8/Materials Parts ------- > --- POWER (1) -------- Light Ion Engine > --- PROPULSION (2) --- Flight Unit Flight Unit > --- UTILITY (1) ------ (None) > --- WEAPON (2) ------- Mining Claw > --- INVENTORY (0) ---- (None) Peak State ------------ > --- POWER ------------ Light Ion Engine > --- PROPULSION ------- Flight Unit Flight Unit > --- UTILITY ---------- (None) > --- WEAPON ----------- Mining Claw > --- INVENTORY -------- (None) [Rating: 4] Favorites ----------- Power Light Ion Engine Engine Light Ion Engine Propulsion Flight Unit Flight Unit Flight Unit Utility None Weapon Mining Claw Energy Gun Small Laser Ballistic Gun Assault Rifle Slashing Weapon Mining Claw Build | -11 -10 -10 -10 -9 -8 ------- Run | Yrd Mat Min Exi Min Mat Slots Evolved 2 | 2 . . . . . Power . | . . . . . . Propulsion 1 | 1 . . . . . Utility . | . . . . . . Weapon 1 | 1 . . . . . Parts Attached 6 | 2 . 1 . 3 . Power 1 | . . . . 1 . Engine 1 | . . . . 1 . Core . | . . . . . . Reactor . | . . . . . . Propulsion 2 | . . . . 2 . Treads . | . . . . . . Leg . | . . . . . . Wheel . | . . . . . . Hover . | . . . . . . Flight 2 | . . . . 2 . Utility . | . . . . . . Device . | . . . . . . Storage . | . . . . . . Processor . | . . . . . . Hackware . | . . . . . . Protection . | . . . . . . Artifact . | . . . . . . Weapon 3 | 2 . 1 . . . Energy Gun 1 | 1 . . . . . Energy Cannon . | . . . . . . Ballistic Gun 1 | 1 . . . . . Ballistic Cannon . | . . . . . . Launcher . | . . . . . . Special Weapon . | . . . . . . Impact Weapon . | . . . . . . Slashing Weapon 1 | . . 1 . . . Piercing Weapon . | . . . . . . Special Melee Weapon . | . . . . . . Unidentified Prototypes . | . . . . . . Parts Lost . | . . . . . . Power . | . . . . . . Propulsion . | . . . . . . Utility . | . . . . . . Weapon . | . . . . . . Highest Loss Streak . | . . . . . . To Critical Strikes . | . . . . . . Average Backups . | . . . . . . Power . | . . . . . . Propulsion . | . . . . . . Utility . | . . . . . . Weapon . | . . . . . . Tool/Special . | . . . . . . Unused Backups . | . . . . . . Power . | . . . . . . Propulsion . | . . . . . . Utility . | . . . . . . Weapon . | . . . . . . Tool/Special . | . . . . . . Average Slot Usage (%) 41 | . 29 27 16 56 66 Engine 7 | . . . . 12 16 Flight 15 | . . . . 26 33 Energy Gun 2 | . 16 10 . . . Ballistic Gun 2 | . 12 10 . . . Slashing Weapon 13 | . . 5 16 16 16 Peak Build Rating 4 | 2 2 2 1 4 4 Average Rating 2 | 1 1 1 1 3 4 On Entrance 1 | . 2 2 1 1 4 Naked Turns 1 | . 1 . . . . Heaviest Build 5 | 3 3 3 2 5 5 Greatest Support 8 | 3 3 3 3 8 8 Greatest Overweight (x) . | . . . . . . Average Overweight (x) . | . . . . . . Largest Inventory Capacity . | . . . . . . Average Capacity . | . . . . . . Most Carried . | . . . . . . Average Carried . | . . . . . . Final Capacity . | . . . . . . Final Carried . | . . . . . . Class Distribution -------------------- 100% | Hacker-Mutant Dominant Class ---------------- Hacker-Mutant | -10/Materials Hacker-Mutant | -10/Mines Hacker-Mutant | -10/Exiles Hacker-Mutant | -9/Mines Hacker-Mutant | -8/Materials Resources | -11 -10 -10 -10 -9 -8 ----------- Run | Yrd Mat Min Exi Min Mat Matter Collected 283 | . . 89 . 194 . Remotely . | . . . . . . Salvage Created 109 | . . 29 . 80 . Parts 13 | . . 4 . 7 2 Haulers Intercepted . | . . . . . . Recyclers Shooed . | . . . . . . Parts Field Recycled . | . . . . . . Retrieved Matter . | . . . . . . Parts Self-Destructed . | . . . . . . Prevented . | . . . . . . Kills | -11 -10 -10 -10 -9 -8 ------- Run | Yrd Mat Min Exi Min Mat Combat Hostiles Destroyed 5 | . . . . 3 2 Melee 5 | . . . . 3 2 Classes Destroyed 3 | . . 1 . 2 . Worker 1 | . . 1 . . . Tunneler 1 | . . . . 1 . Swarmer 5 | . . . . 3 2 Best Kill Streak 3 | . . 1 . 3 2 Combat Bots Only 3 | . . . . 3 2 Max Kills in Single Turn 1 | . . 1 . 1 1 Gunslinging . | . . . . . . Exploded . | . . . . . . Melee 1 | . . . . 1 1 Uniques/NPCs Destroyed . | . . . . . . Combat | -11 -10 -10 -10 -9 -8 -------- Run | Yrd Mat Min Exi Min Mat Hostile Shots Fired 89 | . . . . 35 54 Missed 21 | . . . . 9 12 Hits 68 | . . . . 26 42 Melee 1 | . . . . 1 . Projectile 67 | . . . . 25 42 Critical Strikes 1 | . . . . . 1 Damage Taken 671 | . . . . 239 432 Core 612 | . . . . 233 379 Absorbed by Shields . | . . . . . . Redirected to Core 176 | . . . . 15 161 Core Remaining (%) 80 | 100 . . . 61 . Volleys Fired 1 | 1 . . . . . Largest 2 | 2 . . . . . Hottest 60 | 60 . . . . . Shots Fired 2 | 2 . . . . . Gun 2 | 2 . . . . . Cannon . | . . . . . . Launcher . | . . . . . . Special . | . . . . . . Kinetic 1 | 1 . . . . . Thermal 1 | 1 . . . . . Explosive . | . . . . . . Electromagnetic . | . . . . . . Robot Hit Streak 1 | 1 . . . . . Robot Miss Streak 1 | 1 . . . . . Penetration Max . | . . . . . . Secondary Targets . | . . . . . . Shots Hit Robots 20 | 1 . 1 . 6 12 Core Hits 6 | . . 1 . 3 2 Critical Kills . | . . . . . . Critical Parts Destroyed . | . . . . . . Critical Strikes . | . . . . . . Melee Attacks 40 | . . 1 . 20 19 Impact . | . . . . . . Slashing 40 | . . 1 . 20 19 Piercing . | . . . . . . Sneak Attacks 2 | . . 1 . 1 . Combat Hostiles . | . . . . . . Follow-up Attacks . | . . . . . . Damage Inflicted 490 | 12 . 51 . 168 259 Guns 12 | 12 . . . . . Cannons . | . . . . . . Explosions . | . . . . . . Melee 464 | . . 51 . 154 259 Ramming 14 | . . . . 14 . Kinetic 12 | 12 . . . . . Thermal . | . . . . . . Explosive . | . . . . . . Electromagnetic . | . . . . . . Impact . | . . . . . . Slashing 464 | . . 51 . 154 259 Piercing . | . . . . . . Highest Corruption . | . . . . . . Average Corruption . | . . . . . . Corruption Purged . | . . . . . . Corruption Blocked . | . . . . . . Overload Shots . | . . . . . . Overflow Damage 49 | . . . . 42 7 Projectiles . | . . . . . . Explosions . | . . . . . . Melee 49 | . . . . 42 7 Knockbacks . | . . . . . . Impact . | . . . . . . Kinetic . | . . . . . . Secondary . | . . . . . . Self-Inflicted Damage 7 | . . . . 7 . Shots . | . . . . . . Rammed 1 | . . . . 1 . Targets Rammed 1 | . . . . 1 . Kicked . | . . . . . . Crushed . | . . . . . . Highest Temperature 10 | . . . . . 10 Average Temperature 10 | . . . . . 10 Received Heat Transfer 81 | . . . . . 81 Siege Activations . | . . . . . . Martial Activations . | . . . . . . Shielding Activations . | . . . . . . Robots Disrupted . | . . . . . . Combat Hostiles . | . . . . . . Robots Corrupted . | . . . . . . Combat Hostiles . | . . . . . . Parts Fried . | . . . . . . Impact Corruptions 1 | . . . . 1 . Robots Melted . | . . . . . . Combat Hostiles . | . . . . . . Parts Melted . | . . . . . . Heat Transferred . | . . . . . . Parts Sabotaged . | . . . . . . Parts Stolen . | . . . . . . Parts Stripped . | . . . . . . Power Chain Reactions . | . . . . . . Alert | -11 -10 -10 -10 -9 -8 ------- Run | Yrd Mat Min Exi Min Mat Maximum Alert Level . | . . . . . . Low Security (%) 100 | 100 100 100 . 100 100 Level 1 . | . . . . . . Level 2 . | . . . . . . Level 3 . | . . . . . . Level 4 . | . . . . . . Level 5 . | . . . . . . High Security . | . . . . . . Max Security . | . . . . . . Peak Influence 70 | . . 5 . 70 60 Initial . | . . . . . . Average 18 | . . . . 20 35 Influence Increases 167 | . . 5 . 77 85 Destroy 0b10 Robot/C 100 | . . . . 60 40 Destroy 0b10 Robot/NC 10 | . . 5 . 5 . Destroy Leader 10 | . . . . 10 . Destroy Structure 2 | . . . . 2 . Partial Spotted 15 | . . . . . 15 Lose Combat Pursuer 30 | . . . . . 30 Influence Decreases 112 | . . 5 . 77 30 Time Decay 112 | . . 5 . 77 30 Squads Dispatched 1 | . . . . . 1 Investigation . | . . . . . . Extermination . | . . . . . . Reinforcement 1 | . . . . . 1 Assault . | . . . . . . Garrison . | . . . . . . Intercept . | . . . . . . Searches Triggered . | . . . . . . Construction Impeded . | . . . . . . Haulers Reinforced . | . . . . . . Active Scanning Responses . | . . . . . . Cargo Convoy Interrupts . | . . . . . . Stealth | -11 -10 -10 -10 -9 -8 --------- Run | Yrd Mat Min Exi Min Mat Distress Signals . | . . . . . . Communications Jammed . | . . . . . . Distress Signals . | . . . . . . Times Spotted 19 | . . . . 13 6 Peak Tracking Total 5 | . . . . 5 4 Tactical Retreats 3 | . . . . 1 2 Traps | -11 -10 -10 -10 -9 -8 ------- Run | Yrd Mat Min Exi Min Mat Traps Triggered 1 | . 1 . . . . Indirectly . | . . . . . . Trap Hack Attempts . | . . . . . . Triggered . | . . . . . . Disarmed . | . . . . . . Reprogrammed . | . . . . . . Reused . | . . . . . . Traps Extracted . | . . . . . . Installed . | . . . . . . Triggered . | . . . . . . Machines | -11 -10 -10 -10 -9 -8 ---------- Run | Yrd Mat Min Exi Min Mat Machines Disabled . | . . . . . . Max in Single Turn . | . . . . . . Machines Repaired . | . . . . . . Machines Dismantled . | . . . . . . Machines Sabotaged . | . . . . . . Overloaded Fab Kills . | . . . . . . Hacking | -11 -10 -10 -10 -9 -8 --------- Run | Yrd Mat Min Exi Min Mat Machines Accessed 2 | . . . 1 1 . Terminals . | . . . . . . Fabricators . | . . . . . . Repair Stations . | . . . . . . Recycling Units . | . . . . . . Scanalyzers . | . . . . . . Garrison Access . | . . . . . . Total Hacks 2 | . . . 1 1 . Successful 2 | . . . 1 1 . Failed . | . . . . . . Catastrophic . | . . . . . . Database Lockouts . | . . . . . . Manual . | . . . . . . Terminals . | . . . . . . Fabricators . | . . . . . . Repair Stations . | . . . . . . Recycling Units . | . . . . . . Scanalyzers . | . . . . . . Garrison Access . | . . . . . . Terminal Hacks 2 | . . . 1 1 . Record 1 | . . . 1 . . Open Door 1 | . . . . 1 . Fabricator Hacks . | . . . . . . Repair Station Hacks . | . . . . . . Recycling Unit Hacks . | . . . . . . Scanalyzer . | . . . . . . Garrison Access Hacks . | . . . . . . Unauthorized Hacks . | . . . . . . Terminals . | . . . . . . Fabricators . | . . . . . . Repair Stations . | . . . . . . Recycling Units . | . . . . . . Scanalyzers . | . . . . . . Garrison Access . | . . . . . . Data Cores Recovered . | . . . . . . Used . | . . . . . . Hacking Detections . | . . . . . . Full Trace Events . | . . . . . . Feedback Events . | . . . . . . Feedback Blocked . | . . . . . . Robot Schematics Acquired . | . . . . . . Robots Built . | . . . . . . Authchips . | . . . . . . Time . | . . . . . . Total Robot Build Rating . | . . . . . . Part Schematics Acquired . | . . . . . . Parts Built . | . . . . . . Authchips . | . . . . . . Time . | . . . . . . Total Part Build Rating . | . . . . . . Parts Repaired . | . . . . . . Time . | . . . . . . Parts Recycled . | . . . . . . Recycled Matter . | . . . . . . Retrieved Matter . | . . . . . . Retrieved Components . | . . . . . . Parts Scanalyzed . | . . . . . . Part Schematics Acquired . | . . . . . . Parts Damaged . | . . . . . . Bothacking | -11 -10 -10 -10 -9 -8 ------------ Run | Yrd Mat Min Exi Min Mat Used RIF Installer . | . . . . . . Robots Hacked . | . . . . . . Non-combat . | . . . . . . Combat . | . . . . . . Robot Hacks Applied . | . . . . . . Relay Couplers Released . | . . . . . . Fabnet Peak Effective % . | . . . . . . Robots Rewired . | . . . . . . Allies Hacked . | . . . . . . Hacks Repelled . | . . . . . . Allies | -11 -10 -10 -10 -9 -8 -------- Run | Yrd Mat Min Exi Min Mat Total Allies . | . . . . . . Largest Group . | . . . . . . Highest-Rated Group . | . . . . . . Highest-Rated Ally . | . . . . . . Total Orders . | . . . . . . Ally Attacks . | . . . . . . Total Damage . | . . . . . . Kills . | . . . . . . Allies Corrupted . | . . . . . . Allies Melted . | . . . . . . Intel | -11 -10 -10 -10 -9 -8 ------- Run | Yrd Mat Min Exi Min Mat Active Infowar (turns) . | . . . . . . Robot Analysis Total . | . . . . . . Derelict Logs Recovered 1 | . . . . 1 . Drone Launches . | . . . . . . Drone Recoveries . | . . . . . . Exploration | -11 -10 -10 -10 -9 -8 ------------- Run | Yrd Mat Min Exi Min Mat Turns Passed 601 | 17 36 47 170 258 73 Spaces Moved 1052 | 22 65 78 339 507 41 Core 515 | 22 65 78 339 11 . Treads . | . . . . . . Legs . | . . . . . . Wheels . | . . . . . . Hover . | . . . . . . Flight 537 | . . . . 496 41 Fastest Speed 37 | 50 50 50 50 37 37 Average Speed 43 | 50 50 50 50 37 37 Slowest Speed 50 | 50 50 50 50 50 37 Overloaded Moves . | . . . . . . Propulsion Burnouts . | . . . . . . Robots Hopped . | . . . . . . Potential Cave-ins . | . . . . . . Cave-ins Triggered . | . . . . . . Exploration Rate (%) 36 | 2 16 16 85 89 9 Regions Visited 5 Branch Regions 3 Pre-discovered Areas . | . . . . . . Known Exits Taken . | . . . . . . Unknown Exits Taken 5 | 1 1 1 1 1 . Scrap Searched 2 | . . 1 . 1 . Spaces Dug 2 | . . . . 2 . Terrain Destroyed 2 | . . . . 2 . Melee 2 | . . . . 2 . Projectile . | . . . . . . AOE . | . . . . . . Terrain Rammed . | . . . . . . Walls Destroyed . | . . . . . . Machines Disabled . | . . . . . . Actions | -11 -10 -10 -10 -9 -8 --------- Run | Yrd Mat Min Exi Min Mat Total 1107 | 24 66 83 339 533 62 Wait 8 | . . 2 1 3 2 Move 1047 | 21 64 77 338 506 41 Hop . | . . . . . . Pick Up . | . . . . . . Fast Attach 8 | 2 2 1 . 3 . Attach . | . . . . . . Detach . | . . . . . . Swap . | . . . . . . Drop 2 | . . 2 . . . Fire 1 | 1 . . . . . Melee 40 | . . 1 . 20 19 Ram 1 | . . . . 1 . Kick . | . . . . . . Crush . | . . . . . . Escape Stasis . | . . . . . . Rewire . | . . . . . . Trap . | . . . . . . Miscellaneous . | . . . . . . Route ------- -11/Scrapyard -10/Materials -10/Mines -10/Exiles (discovered 2 exits: *Min x2) -9/Mines -8/Materials History --------- Turn | Location | Event 1 | -11/Scrapyard | Upgraded with Propulsion slot (x1) 1 | -11/Scrapyard | Upgraded with Weapon slot (x1) 9 | -11/Scrapyard | Discovered new exit (range 14) 18 | -11/Scrapyard | Entered Materials 47 | -10/Materials | Discovered new exit (range 11) 54 | -10/Materials | Entered Mines 98 | -10/Mines | Deemed a non-threat by the Exiles lab entrance 99 | -10/Mines | Discovered new exit (range 5) 101 | -10/Mines | Entered Exiles 101 | -10/Exiles | Found Exiles lab abandoned 110 | -10/Exiles | Discovered new exit (range 15) 265 | -10/Exiles | Discovered new exit (range 14) 271 | -10/Exiles | Entered Mines 308 | -9/Mines | Reached level 2 312 | -9/Mines | Build established: Hacker-Mutant 321 | -9/Mines | Learned 2 Materials zone layouts 324 | -9/Mines | Assembled infested the area 359 | -9/Mines | Found a damaged Exp. Sensor Array with a note attached 454 | -9/Mines | Received a Rocket Launcher from a helpful Derelict 498 | -9/Mines | Met a Derelict who couldn't figure out how to use a Trap Extractor 526 | -9/Mines | Discovered new exit (range 5) 529 | -9/Mines | Entered Materials 531 | -8/Materials | Reached level 3 553 | -8/Materials | Core integrity fell below 50% 586 | -8/Materials | Core integrity fell below 20% 602 | -8/Materials | Destroyed by Y-45 Defender with Beam Rifle Last Messages --------------- U-05 Engineer knocked back. Slammed into U-05 Engineer. Destroyed Structural Scanner. U-05 Engineer system corrupted by crushing effect. U-05 Engineer system terminally corrupted. LOCATION=UNKNOWN GOAL=ESCAPE Loading 2 Materials zones... Reached level 3. Upgraded: Melee Accuracy (+10) Upgraded: Hack Attack % (+10) Destroyed Flight Unit. S-10 Pest destroyed. O-16 Technician: "IFF HANDSHAKE FAILED. SECURING TERMINAL." Destroyed Flight Unit. S-10 Pest destroyed. Critical hit (Burn: +37). S-10 Pest Lgt. Assault Rifle ripped off. ALERT: Hostiles spotted, dispatching reinforcements to Terminal M001. K-01 Serf collects debris. Map ----- +----------------------------------------------------+ | | | | | | | ????????????????????????????????############??? | | ????????????????????????????????# #?? | | ????????????????????????????????# #?? | | ????????????????????????????????# #?? | | ????????????????????????????????# #?? | | ?????????????????????????????????? #?? | | ????????????????????????#+#????????? #?? | | ???????????????????????? ??????????? ?### | | ???????????????????????? ???????????##+#### | | ???????????????????????? ???????????# | | ????????????????##+###??# ############# ### | | ????????????????? #??# #?# | | ?????????????????? #??# ####+######## #?# | | ??????????????????# #??# # #?# #?# | | ??????????????????# #??# # ] #?# #?# | | ??????????????????# #### # #?# #?### | | ??????????????????# # """ """ #?# #???? | | ??????????????????# + """ """ #?# ???? | | ??????????????????# ###### """ """ #?# ##??? | | ??????????????????# #????# #?# #???? | | ??????????????????# #????# #?# #???? | | ??????????????????# =###############??# #???? | | ??????????????????# kY@%[ + ?# #???? | | ??????????????????# *%= ######????????# #???? | | ??????????????????# #?????????????? #???? | | ????????# ## #?????????????? #???? | | ????????#""""" ## "?????????????? #???? | | ????????#""""" ## T"????????????? #???? | | ????????#""""" # # ""#???????????? ????? | | ????????#""""" + " # ###???????????????????? | | ????????#""""" # "T # #?????????????????????? | | ????????#""""" # # #?????????????????????? | | ????????#""""" ##+###+#?????????????????????? | | ????????# # ?????????????????????? | | ????????########## ?????????????????????? | | ?????????????????# ?????????????????????? | | ?????????????????# """ ""?????????????????????? | | ?????????????????# """ ""?????????????????????? | | ?????????????????# """ ""?????????????????????? | | ?????????????????# ?????????????????????? | | ?????????????????########?????????????????????? | | ?????????????????# ?????????????????????? | | ?????????????????# ?????????????????????? | | ?????????????????# ?????????????????????? | | ?????????????????# ?????????????????????? | | ?????????????????# ?????????????????????? | | ?????????????????# ?????????????????????? | +----------------------------------------------------+ Best States ------------- Heat Dissipation 25 Energy Generation 10 Energy Capacity 125 Matter Stores 300 Matter Capacity 300 Sight Range 16 Terrain Scan Density 10 Evasion (%) 62 Offensive Hacking 30 Item Schematics ----------------- None Robot Schematics ------------------ None Fabricated ------------ Nothing Repaired ---------- Nothing Alien Tech Used ----------------- None Achievements -------------- None Challenges ------------ None RPGLIKE | -11 -10 -10 -10 -9 -8 --------- Run | Yrd Mat Min Exi Min Mat Levels Raised 2 | . . . . 1 1 XP Earned 6250 | 3000 . 500 200 850 1700 XP Spent 5700 | 3000 . . . . 2700 Upgrades 10 | 6 . . . . 4 Propulsion Slot 1 | 1 . . . . . Weapon Slot 1 | 1 . . . . . Melee Accuracy 2 | . . . . . 2 Hack Attack % 6 | 4 . . . . 2 Protomatter Created 16 | . . . . . 16 Protomatter Decayed 46 | . . . . 46 . Game ------ Seed LinkedPitchforkMultitool Manual? 0 Play Time 00:06:25 Cumulative 260.9 hours Start 2025.06.06 @ 17:04:58 End 2025.06.06 @ 17:10:36 Sessions 1 Manual Loads 0 Difficulty Rogue Special Mode Winter2019/RPGLIKE Game No. 263 Rogue 74 Adventurer 177 Explorer 12 Win Type - Total 65 Types 19/1/16/2/12/0/4/5/0/6 Lore% 54 Gallery% 53 Achievement% 71 Wizard Run 0 Options --------- Layout 0 ASCII 0 Keyboard 0 Movement Numpad Keybinds 0 Fullscreen 2 Font 12/Smallcaps Map View 83x54 Zoom Use 0% Tactical HUD 0 Map Filters NONE Filters NONE Steam 1 RUN: f7de2bc4-9d1a-4cfc-bdfb-ff4b566d1e44